fUST/lending_fUST_20250404
["ID","MTS","AMOUNT","RATE_DAILY","PERIOD"]
[357098958,1743741040763,-514.87751826,0.00018811,2]
[357098960,1743741040773,-500.0,0.00018811,2]
[357098961,1743741040782,-500.0,0.00018811,2]
[357098962,1743741040792,-500.0,0.00018811,2]
[357098963,1743741040802,-500.0,0.00018811,2]
[357098964,1743741040812,-500.0,0.00018811,2]
[357098965,1743741040822,-500.0,0.00018811,2]
[357098966,1743741040834,-500.0,0.00018811,2]
[357098967,1743741040845,-500.0,0.00018811,2]
[357098968,1743741040855,-511.14737222,0.00018811,2]
[357098969,1743741040864,-509.91628984,0.00018811,2]
[357098970,1743741040873,-515.12684024,0.00018811,2]
[357098971,1743741040883,-500.0,0.00018811,2]
[357098972,1743741040893,-500.0,0.00018811,2]
[357098973,1743741040905,-500.0,0.00018811,2]
[357098974,1743741040915,-500.0,0.00018811,2]
[357098975,1743741040925,-500.0,0.00018811,2]
[357098976,1743741040935,-500.0,0.00018811,2]
[357098977,1743741040945,-507.34106265,0.00018811,2]
[357098978,1743741040955,-500.0,0.00018811,2]
[357098979,1743741040965,-500.0,0.00018811,2]
[357098980,1743741040975,-508.9452387,0.00018811,2]
[357098981,1743741040984,-500.0,0.00018811,2]
[357098982,1743741040995,-500.0,0.00018811,2]
[357098983,1743741041006,-500.0,0.00018811,2]
[357098984,1743741041016,-500.0,0.00018811,2]
[357098985,1743741041026,-500.0,0.00018811,2]
[357098986,1743741041036,-500.0,0.00018811,2]
[357098987,1743741041046,-539.41897939,0.00018811,2]
[357098988,1743741041056,-500.0,0.00018811,2]
[357098989,1743741041066,-500.0,0.00018811,2]
[357098990,1743741041076,-511.67457872,0.00018811,2]
[357098991,1743741041086,-500.0,0.00018811,2]
[357098992,1743741041096,-500.0,0.00018811,2]
[357098993,1743741041106,-500.0,0.00018811,2]
[357098994,1743741041116,-500.0,0.00018811,2]
[357098995,1743741041126,-500.0,0.00018811,2]
[357098996,1743741041136,-500.0,0.00018811,2]
[357098997,1743741041146,-500.0,0.00018811,2]
[357098998,1743741041157,-521.20126632,0.00018811,2]
[357098999,1743741041168,-500.0,0.00018811,2]
[357099000,1743741041178,-500.0,0.00018811,2]
[357099001,1743741041189,-500.0,0.00018811,2]
[357099002,1743741041199,-500.0,0.00018811,2]
[357099003,1743741041209,-525.54708151,0.00018811,2]
[357099004,1743741041219,-500.0,0.00018811,2]
[357099005,1743741041229,-500.0,0.00018811,2]
[357099006,1743741041238,-500.0,0.00018811,2]
[357099007,1743741041248,-500.0,0.00018811,2]
[357099008,1743741041258,-504.92293615,0.00018811,2]
[357099009,1743741041268,-500.0,0.00018811,2]
[357099010,1743741041278,-500.0,0.00018811,2]
[357099011,1743741041287,-500.0,0.00018811,2]
[357099012,1743741041297,-371.35996161,0.00018811,2]
[357099013,1743741041307,-500.0,0.00018811,2]
[357099014,1743741041318,-506.32249348,0.00018811,2]
[357099015,1743741041327,-508.49344752,0.00018811,2]
[357099016,1743741041338,-500.0,0.00018811,2]
[357099017,1743741041348,-500.0,0.00018811,2]
[357099018,1743741041358,-502.50770694,0.00018811,2]
[357099019,1743741041369,-502.55251455,0.00018811,2]
[357099020,1743741041379,-500.0,0.00018811,2]
[357099021,1743741041389,-500.0,0.00018811,2]
[357099022,1743741041399,-507.67040802,0.00018811,2]
[357099023,1743741041409,-500.0,0.00018811,2]
[357099024,1743741041419,-500.0,0.00018811,2]
[357099025,1743741041429,-500.0,0.00018811,2]
[357099026,1743741041439,-500.0,0.00018811,2]
[357099027,1743741041449,-500.0,0.00018811,2]
[357099028,1743741041459,-500.0,0.00018811,2]
[357099029,1743741041468,-500.0,0.00018811,2]
[357099030,1743741041478,-500.0,0.00018811,2]
[357099031,1743741041488,-500.0,0.00018811,2]
[357099032,1743741041498,-423.18987803,0.00018811,2]
[357099033,1743741041508,-500.0,0.00018811,2]
[357099034,1743741041519,-503.52007452,0.00018811,2]
[357099035,1743741041528,-500.0,0.00018811,2]
[357099036,1743741041541,-500.0,0.00018811,2]
[357099037,1743741041550,-513.91660648,0.00018811,2]
[357099038,1743741041560,-541.29207254,0.00018811,2]
[357099039,1743741041570,-500.0,0.00018811,2]
[357099040,1743741041580,-504.38292913,0.00018811,2]
[357099041,1743741041591,-507.78097176,0.00018811,2]
[357099042,1743741041601,-503.30529183,0.00018811,2]
[357099043,1743741041612,-500.0,0.00018811,2]
[357099044,1743741041623,-504.69748137,0.00018811,2]
[357099045,1743741041781,-503.6095038,0.00018811,2]
[357099046,1743741041792,-502.89919726,0.00018811,2]
[357099047,1743741041803,-500.0,0.00018811,2]
[357099048,1743741041812,-502.04533985,0.00018811,2]
[357099049,1743741041822,-500.0,0.00018811,2]
[357099050,1743741041831,-528.04927011,0.00018811,2]
[357099051,1743741041841,-502.90058762,0.00018811,2]
[357099052,1743741041851,-500.0,0.00018811,2]
[357099053,1743741041860,-500.0,0.00018811,2]
[357099054,1743741041869,-503.59975782,0.00018811,2]
[357099055,1743741041878,-500.0,0.00018811,2]
[357099056,1743741041888,-500.0,0.00018811,2]
[357099057,1743741041897,-500.0,0.00018811,2]
[357099058,1743741041906,-500.0,0.00018811,2]
[357099059,1743741041916,-500.0,0.00018811,2]
[357099060,1743741041925,-166.2329334,0.00018811,2]
[357099061,1743741041934,-504.67314974,0.00018811,2]
[357099062,1743741041944,-501.69150835,0.00018811,2]
[357099063,1743741041954,-500.0,0.00018811,2]
[357099064,1743741041964,-500.0,0.00018811,2]
[357099065,1743741041975,-501.41634537,0.00018811,2]
[357099066,1743741041985,-500.0,0.00018811,2]
[357099067,1743741041995,-500.0,0.00018811,2]
[357099068,1743741042006,-500.0,0.00018811,2]
[357099069,1743741042015,-507.19275526,0.00018811,2]
[357099070,1743741042024,-500.0,0.00018811,2]
[357099071,1743741042034,-504.32249405,0.00018811,2]
[357099072,1743741042043,-500.0,0.00018811,2]
[357099073,1743741042054,-511.41623963,0.00018811,2]
[357099074,1743741042063,-500.0,0.00018811,2]
[357099075,1743741042073,-500.0,0.00018811,2]
[357099076,1743741042082,-464.37243497,0.00018811,2]
[357099077,1743741042198,-1183.36995483,0.0001871,2]
[357099078,1743741042211,-35.62756503,0.00018811,2]
[357099079,1743741042222,-500.0,0.00018811,2]
[357099080,1743741042237,-345.81167604,0.00018811,2]
[357099081,1743741042250,-163.07930609,0.00018811,2]
[357099082,1743741042261,-513.29683706,0.00018811,2]
[357099083,1743741042271,-500.0,0.00018811,2]
[357099084,1743741042282,-507.12110243,0.00018811,2]
[357099085,1743741042293,-536.95590644,0.00018811,2]
[357099086,1743741042303,-504.30250332,0.00018811,2]
[357099087,1743741042313,-500.0,0.00018811,2]
[357099088,1743741042324,-513.907486,0.00018811,2]
[357099089,1743741042334,-500.0,0.00018811,2]
[357099090,1743741042344,-500.0,0.00018811,2]
[357099091,1743741042353,-500.0,0.00018811,2]
[357099092,1743741042363,-520.47143509,0.00018811,2]
[357099093,1743741042373,-513.29797128,0.00018811,2]
[357099094,1743741042383,-500.0,0.00018811,2]
[357099095,1743741042393,-500.0,0.00018811,2]
[357099096,1743741042403,-504.62430031,0.00018811,2]
[357099097,1743741042413,-527.79696456,0.00018811,2]
[357099098,1743741042423,-500.0,0.00018811,2]
[357099099,1743741042432,-157.74044207,0.00018811,2]
[357099100,1743741042442,-500.0,0.00018811,2]
[357099101,1743741042452,-500.0,0.00018811,2]
[357099102,1743741042463,-500.0,0.00018811,2]
[357099103,1743741042473,-500.0,0.00018811,2]
[357099104,1743741042483,-500.92403853,0.00018811,2]
[357099105,1743741042493,-504.00498404,0.00018811,2]
[357099106,1743741042503,-1019.15493684,0.00018811,2]
[357099107,1743741042512,-511.9797485,0.00018811,2]
[357099108,1743741042523,-500.97764635,0.00018811,2]
[357099109,1743741042537,-214.93202394,0.00018811,6]
[357099110,1743741042550,-500.0,0.00018811,2]
[357099111,1743741042561,-503.74244696,0.00018811,2]
[357099112,1743741042572,-500.0,0.00018811,2]
[357099113,1743741042584,-500.0,0.00018811,2]
[357099114,1743741042594,-500.0,0.00018811,2]
[357099115,1743741042604,-547.32226849,0.00018811,2]
[357099116,1743741042617,-522.60812756,0.00018811,2]
[357099117,1743741042627,-506.90656017,0.00018811,2]
[357099118,1743741042638,-552.95510444,0.00018811,2]
[357099119,1743741042648,-512.94667065,0.00018811,2]
[357099120,1743741042658,-500.0,0.00018811,2]
[357099121,1743741042669,-500.0,0.00018811,2]
[357099122,1743741042679,-505.09727223,0.00018811,2]
[357099123,1743741042690,-603.45169564,0.00018811,2]
[357099124,1743741042700,-500.0,0.00018811,2]
[357099125,1743741042711,-510.16293341,0.00018811,2]
[357099126,1743741042729,-521.8541597,0.00018811,2]
[357099127,1743741042748,-500.0,0.00018811,2]
[357099128,1743741042758,-510.67109135,0.00018811,2]
[357099129,1743741042768,-541.36899617,0.00018811,2]
[357099130,1743741042778,-516.08529567,0.00018811,2]
[357099131,1743741042788,-500.0,0.00018811,2]
[357099132,1743741042798,-500.0,0.00018811,2]
[357099133,1743741042808,-505.75598456,0.00018811,2]
[357099134,1743741042818,-504.42513548,0.00018811,2]
[357099135,1743741042828,-511.86302105,0.00018811,2]
[357099136,1743741042837,-160.58332159,0.00018811,2]
[357099137,1743741042898,-354.63042207,0.00018811,2]
[357099138,1743741042908,-500.0,0.00018811,2]
[357099139,1743741042918,-522.11496809,0.00018811,2]
[357099140,1743741042927,-405.55632945,0.00018811,2]
[357099144,1743741043251,-103.52751352,0.00018811,2]
[357099145,1743741043262,-510.64697067,0.00018811,2]
[357099146,1743741043272,-500.0,0.00018811,2]
[357099147,1743741043282,-1857.34,0.00018811,2]
[357099148,1743741043292,-512.66337445,0.00018811,2]
[357099149,1743741043302,-518.704765,0.00018811,2]
[357099150,1743741043311,-217.67279424,0.00018811,2]
[357099151,1743741043324,-292.40418072,0.00018811,2]
[357099152,1743741043334,-504.21519234,0.00018811,2]
[357099153,1743741043343,-544.60437055,0.00018811,2]
[357099154,1743741043353,-510.26442195,0.00018811,2]
[357099155,1743741043364,-95.17844631,0.00018811,2]
[357099159,1743741046397,-404.82155369,0.00018811,2]
[357099160,1743741046407,-500.0,0.00018811,2]
[357099161,1743741046417,-500.0,0.00018811,2]
[357099162,1743741046426,-504.31176058,0.00018811,2]
[357099163,1743741046436,-502.47263056,0.00018811,2]
[357099164,1743741046447,-500.0,0.00018811,2]
[357099165,1743741046458,-518.96610703,0.00018811,2]
[357099166,1743741046467,-500.0,0.00018811,2]
[357099167,1743741046477,-500.0,0.00018811,2]
[357099168,1743741046487,-500.0,0.00018811,2]
[357099169,1743741046497,-500.0,0.00018811,2]
[357099170,1743741046506,-530.38269732,0.00018811,2]
[357099171,1743741046516,-504.2422471,0.00018811,2]
[357099172,1743741046527,-506.19499239,0.00018811,2]
[357099173,1743741046537,-506.55618067,0.00018811,2]
[357099174,1743741046551,-510.00518908,0.00018811,2]
[357099175,1743741046561,-516.65742872,0.00018811,2]
[357099176,1743741046572,-500.0,0.00018811,2]
[357099177,1743741046583,-500.0,0.00018811,2]
[357099178,1743741046593,-519.06283925,0.00018811,2]
[357099179,1743741046603,-500.0,0.00018811,2]
[357099180,1743741046613,-512.8586824,0.00018811,2]
[357099181,1743741046624,-500.0,0.00018811,2]
[357099182,1743741046635,-500.0,0.00018811,2]
[357099183,1743741046645,-527.13715985,0.00018811,2]
[357099184,1743741046655,-500.0,0.00018811,2]
[357099185,1743741046665,-507.54402472,0.00018811,2]
[357099186,1743741046675,-518.71353541,0.00018811,2]
[357099187,1743741046685,-509.2875396,0.00018811,2]
[357099188,1743741046695,-513.00018352,0.00018811,2]
[357099189,1743741046706,-495.0,0.00018811,2]
[357099190,1743741046716,-500.0,0.00018811,2]
[357099191,1743741046727,-500.0,0.00018811,2]
[357099192,1743741046737,-559.9190732,0.00018811,2]
[357099193,1743741046747,-502.0713981,0.00018811,2]
[357099194,1743741046758,-510.56851216,0.00018811,2]
[357099195,1743741046767,-517.33747791,0.00018811,2]
[357099196,1743741046777,-500.0,0.00018811,2]
[357099197,1743741046787,-500.0,0.00018811,2]
[357099198,1743741046797,-507.21869172,0.00018811,2]
[357099199,1743741046806,-500.0,0.00018811,2]
[357099200,1743741046816,-500.0,0.00018811,2]
[357099201,1743741046826,-500.0,0.00018811,2]
[357099202,1743741046835,-570.45244016,0.00018811,2]
[357099203,1743741046844,-500.0,0.00018811,2]
[357099204,1743741046854,-500.0,0.00018811,2]
[357099205,1743741046864,-500.0,0.00018811,2]
[357099206,1743741046873,-500.0,0.00018811,2]
[357099207,1743741046883,-500.0,0.00018811,2]
[357099208,1743741046892,-500.0,0.00018811,2]
[357099209,1743741046902,-500.0,0.00018811,2]
[357099210,1743741046912,-500.0,0.00018811,2]
[357099211,1743741046921,-500.0,0.00018811,2]
[357099212,1743741046931,-633.23497598,0.00018811,2]
[357099213,1743741046941,-500.0,0.00018811,2]
[357099214,1743741046951,-500.0,0.00018811,2]
[357099215,1743741046962,-500.0,0.00018811,2]
[357099216,1743741046972,-500.0,0.00018811,2]
[357099217,1743741046982,-500.0,0.00018811,2]
[357099218,1743741046992,-500.0,0.00018811,2]
[357099219,1743741047002,-500.0,0.00018811,2]
[357099220,1743741047012,-500.0,0.00018811,2]
[357099221,1743741047022,-500.0,0.00018811,2]
[357099222,1743741047032,-500.0,0.00018811,2]
[357099223,1743741047041,-500.0,0.00018811,2]
[357099224,1743741047051,-500.0,0.00018811,2]
[357099225,1743741047062,-500.0,0.00018811,2]
[357099226,1743741047072,-500.0,0.00018811,2]
[357099227,1743741047082,-500.0,0.00018812,2]
[357099228,1743741047091,-500.0,0.00018812,2]
[357099229,1743741047101,-500.0,0.00018812,2]
[357099230,1743741047111,-500.0,0.00018812,2]
[357099231,1743741047121,-500.0,0.00018812,2]
[357099232,1743741047131,-500.0,0.00018812,2]
[357099233,1743741047140,-500.0,0.00018812,2]
[357099234,1743741047150,-500.0,0.00018812,2]
[357099235,1743741047159,-500.0,0.00018812,2]
[357099236,1743741047170,-500.0,0.00018812,2]
[357099237,1743741047180,-500.0,0.00018812,2]
[357099238,1743741047190,-500.0,0.00018812,2]
[357099239,1743741047200,-500.0,0.00018812,2]
[357099240,1743741047210,-500.0,0.00018812,2]
[357099241,1743741047220,-500.0,0.00018812,2]
[357099242,1743741047230,-500.0,0.00018812,2]
[357099243,1743741047240,-500.0,0.00018812,2]
[357099244,1743741047250,-511.74392911,0.00018812,2]
[357099245,1743741047260,-152.22,0.00018813,2]
[357099246,1743741047269,-500.0,0.00018814,2]
[357099247,1743741047279,-500.0,0.00018814,2]
[357099248,1743741047289,-500.0,0.00018814,2]
[357099249,1743741047299,-500.0,0.00018814,2]
[357099250,1743741047309,-500.0,0.00018814,2]
[357099251,1743741047318,-401.0,0.00018847,2]
[357099252,1743741047329,-500.0,0.00018873,2]
[357099253,1743741047339,-500.0,0.00018873,2]
[357099254,1743741047348,-500.0,0.00018873,2]
[357099255,1743741047358,-400.0,0.00018873,2]
[357099256,1743741047368,-500.0,0.00018873,2]
[357099257,1743741047379,-500.0,0.00018873,2]
[357099258,1743741047389,-500.0,0.00018873,2]
[357099259,1743741047399,-500.0,0.00018873,2]
[357099260,1743741047409,-508.90330318,0.00018873,2]
[357099261,1743741047419,-500.0,0.00018873,2]
[357099262,1743741047429,-500.0,0.00018873,2]
[357099263,1743741047438,-2892.37789099,0.000189,2]
[357099264,1743741047448,-500.0,0.00018993,2]
[357099265,1743741047460,-500.0,0.00018993,2]
[357099266,1743741047470,-500.0,0.00018993,2]
[357099267,1743741047480,-500.0,0.00018993,2]
[357099268,1743741047491,-500.0,0.00018993,2]
[357099269,1743741047500,-560.92130049,0.00018995,2]
[357099270,1743741047511,-500.0,0.00019018,2]
[357099271,1743741047521,-500.0,0.00019041,2]
[357099272,1743741047532,-500.0,0.00019084,2]
[357099273,1743741047545,-500.0,0.00019084,2]
[357099274,1743741047555,-500.0,0.00019084,2]
[357099275,1743741047565,-500.0,0.00019084,2]
[357099276,1743741047575,-2310.08,0.00019084,2]
[357099278,1743741047587,-4585.78,0.00019084,2]
[357099279,1743741047596,-635.6,0.00019084,2]
[357099280,1743741047606,-1117.46,0.00019084,2]
[357099281,1743741047732,-664.07,0.00019084,2]
[357099282,1743741047743,-500.0,0.00019084,2]
[357099283,1743741047753,-500.0,0.00019084,2]
[357099284,1743741047762,-500.0,0.00019084,2]
[357099285,1743741047771,-500.0,0.00019084,2]
[357099286,1743741047781,-500.0,0.00019084,2]
[357099287,1743741047790,-500.0,0.00019084,2]
[357099288,1743741047799,-1857.34,0.00019085,2]
[357099289,1743741047810,-500.0,0.00019085,2]
[357099290,1743741047819,-500.0,0.00019358,2]
[357099291,1743741047828,-468.66873417,0.00019358,2]
[357099292,1743741047837,-500.0,0.00019358,2]
[357099293,1743741047846,-2310.08,0.00019358,2]
[357099294,1743741047856,-4585.78,0.00019358,2]
[357099295,1743741047865,-1117.46,0.00019358,2]
[357099296,1743741047875,-664.07,0.00019358,2]
[357099297,1743741047884,-500.0,0.00019358,2]
[357099298,1743741047894,-500.0,0.00019358,2]
[357099299,1743741047904,-1857.34,0.00019359,2]
[357099300,1743741047914,-500.0,0.00019359,2]
[357099301,1743741047923,-800.0,0.00019421,2]
[357099302,1743741047933,-406.16,0.00019632,2]
[357099303,1743741047943,-500.0,0.00019632,2]
[357099304,1743741047953,-2310.08,0.00019632,2]
[357099305,1743741047962,-4585.78,0.00019632,2]
[357099306,1743741047972,-1117.46,0.00019632,2]
[357099307,1743741047982,-664.07,0.00019632,2]
[357099308,1743741047991,-607.3074683,0.00019632,2]
[357099309,1743741048001,-500.0,0.00019632,2]
[357099310,1743741048011,-1857.34,0.00019633,2]
[357099311,1743741048021,-500.0,0.00019633,2]
[357099312,1743741048031,-579.2347302,0.00019753,2]
[357099313,1743741048041,-291.64733547,0.00019866,2]
[357099349,1743742146134,-169.16431,0.00013562,2]
[357099350,1743742146156,-124.83569,0.00013699,2]
[357099404,1743742232588,-44.32862,0.00013699,2]
[357099405,1743742232598,-300.0,0.00017999,2]
[357099406,1743742232611,-500.0,0.00017999,2]
[357099413,1743742232778,-248.07248105,0.00017999,2]
[357099416,1743742232789,-7727.63485578,0.00018,2]
[357099419,1743742232801,-49664.69893724,0.00018,2]
[357099423,1743742232813,-22345.90754886,0.00018,2]
[357099425,1743742232822,-1035.44871045,0.00018343,2]
[357099427,1743742232832,-182.2084201,0.00018443,2]
[357099428,1743742232841,-419.12848707,0.00018609,2]
[357099430,1743742232851,-781.25,0.00018621,2]
[357099433,1743742232861,-500.0,0.00018809,2]
[357099435,1743742232875,-500.0,0.00018809,2]
[357099437,1743742232884,-500.0,0.00018809,2]
[357099439,1743742232893,-500.0,0.00018809,2]
[357099442,1743742232903,-500.0,0.00018809,2]
[357099445,1743742232913,-500.0,0.00018809,2]
[357099448,1743742232924,-512.27899934,0.00018809,2]
[357099450,1743742232933,-500.0,0.00018809,2]
[357099452,1743742232943,-500.0,0.00018809,2]
[357099454,1743742232953,-465.1826732,0.00018809,2]
[357099457,1743742232962,-500.0,0.00018809,2]
[357099460,1743742232971,-500.0,0.00018809,2]
[357099463,1743742232981,-500.0,0.00018809,2]
[357099466,1743742232994,-273.04818288,0.00018809,2]
[357099467,1743742233004,-500.0,0.00018809,2]
[357099470,1743742233014,-500.0,0.00018809,2]
[357099472,1743742233026,-500.0,0.00018809,2]
[357099474,1743742233036,-500.0,0.00018809,2]
[357099476,1743742233046,-500.0,0.00018809,2]
[357099478,1743742233056,-500.0,0.00018809,2]
[357099480,1743742233066,-500.0,0.00018809,2]
[357099482,1743742233077,-500.0,0.00018809,2]
[357099483,1743742233087,-500.0,0.00018809,2]
[357099484,1743742233098,-500.0,0.00018809,2]
[357099485,1743742233108,-500.0,0.00018809,2]
[357099487,1743742233118,-500.0,0.00018809,2]
[357099488,1743742233129,-500.0,0.00018809,2]
[357099489,1743742233139,-500.0,0.00018809,2]
[357099490,1743742233149,-500.0,0.00018809,2]
[357099491,1743742233159,-500.0,0.00018809,2]
[357099492,1743742233169,-500.0,0.00018809,2]
[357099493,1743742233179,-500.0,0.00018809,2]
[357099494,1743742233189,-500.0,0.00018809,2]
[357099495,1743742233198,-500.0,0.00018809,2]
[357099496,1743742233209,-500.0,0.00018809,2]
[357099497,1743742233219,-500.0,0.00018809,2]
[357099498,1743742233229,-500.0,0.00018809,2]
[357099499,1743742233240,-500.0,0.00018809,2]
[357099500,1743742233252,-500.0,0.00018809,2]
[357099501,1743742233262,-500.0,0.00018809,2]
[357099502,1743742233272,-500.0,0.00018809,2]
[357099503,1743742233282,-500.0,0.00018809,2]
[357099504,1743742233292,-506.25762146,0.00018809,2]
[357099505,1743742233302,-500.0,0.00018809,2]
[357099506,1743742233312,-200.0,0.00018809,2]
[357099507,1743742233321,-500.0,0.00018809,2]
[357099508,1743742233332,-500.0,0.00018809,2]
[357099509,1743742233342,-523.77,0.00018809,2]
[357099510,1743742233352,-500.0,0.00018809,2]
[357099511,1743742233362,-500.0,0.00018809,2]
[357099512,1743742233372,-392.94348101,0.00018809,2]
[357099513,1743742233382,-500.0,0.00018809,2]
[357099514,1743742233392,-500.0,0.00018809,2]
[357099515,1743742233402,-500.0,0.00018809,2]
[357099516,1743742233411,-500.0,0.00018809,2]
[357099517,1743742233421,-500.0,0.00018809,2]
[357099518,1743742233431,-500.0,0.00018809,2]
[357099519,1743742233441,-500.0,0.00018809,2]
[357099520,1743742233450,-500.0,0.00018809,2]
[357099521,1743742233459,-500.0,0.00018809,2]
[357099522,1743742233470,-500.0,0.00018809,2]
[357099523,1743742233479,-500.0,0.00018809,2]
[357099524,1743742233489,-500.0,0.00018809,2]
[357099525,1743742233498,-500.0,0.00018809,2]
[357099526,1743742233508,-500.0,0.00018809,2]
[357099527,1743742233517,-500.0,0.00018809,2]
[357099528,1743742233528,-500.0,0.00018809,2]
[357099529,1743742233537,-391.42195333,0.00018809,2]
[357099530,1743742233547,-4332.39,0.00018809,2]
[357099531,1743742233557,-500.0,0.00018809,2]
[357099532,1743742233566,-500.0,0.00018809,2]
[357099533,1743742233576,-483.07388866,0.00018809,2]
[357099534,1743742233587,-349.19652851,0.00018809,2]
[357099535,1743742233596,-500.0,0.00018809,2]
[357099536,1743742233606,-500.0,0.00018809,2]
[357099537,1743742233616,-500.0,0.00018809,2]
[357099538,1743742233625,-500.0,0.00018809,2]
[357099539,1743742233636,-500.0,0.00018809,2]
[357099540,1743742233646,-500.0,0.00018809,2]
[357099541,1743742233656,-514.51850904,0.00018809,2]
[357099542,1743742233665,-500.0,0.00018809,2]
[357099543,1743742233675,-500.0,0.00018809,2]
[357099544,1743742233684,-500.0,0.00018809,2]
[357099545,1743742233694,-500.0,0.00018809,2]
[357099546,1743742233703,-500.0,0.00018809,2]
[357099547,1743742233713,-500.0,0.00018809,2]
[357099548,1743742233723,-500.0,0.00018809,2]
[357099549,1743742233733,-500.0,0.00018809,2]
[357099550,1743742233744,-500.0,0.00018809,2]
[357099551,1743742233755,-500.0,0.00018809,2]
[357099552,1743742233766,-525.16,0.00018809,2]
[357099553,1743742233776,-556.05776315,0.00018809,2]
[357099554,1743742233787,-500.0,0.00018809,2]
[357099555,1743742233797,-561.85,0.00018809,2]
[357099556,1743742233807,-500.0,0.00018809,2]
[357099557,1743742233817,-500.0,0.00018809,2]
[357099558,1743742233827,-500.0,0.00018809,2]
[357099559,1743742233837,-500.0,0.00018809,2]
[357099560,1743742233846,-500.0,0.00018809,2]
[357099561,1743742233855,-500.0,0.00018809,2]
[357099562,1743742233866,-500.0,0.00018809,2]
[357099563,1743742233880,-557.51583877,0.00018809,2]
[357099564,1743742233891,-500.0,0.00018809,2]
[357099565,1743742233900,-500.0,0.00018809,2]
[357099566,1743742233911,-500.0,0.00018809,2]
[357099567,1743742233920,-500.0,0.00018809,2]
[357099568,1743742233931,-500.0,0.00018809,2]
[357099569,1743742233951,-500.0,0.00018809,2]
[357099570,1743742233962,-500.0,0.00018809,2]
[357099571,1743742233973,-500.0,0.00018809,2]
[357099572,1743742233983,-290.7711242,0.00018809,2]
[357099573,1743742233994,-1160.39,0.00018809,2]
[357099574,1743742234005,-500.0,0.00018809,2]
[357099575,1743742234015,-628.08029446,0.00018809,2]
[357099576,1743742234025,-209.19,0.00018809,2]
[357099577,1743742234035,-703.19,0.00018809,2]
[357099578,1743742234047,-500.0,0.00018809,2]
[357099579,1743742234057,-500.0,0.00018809,2]
[357099580,1743742234068,-500.0,0.00018809,2]
[357099581,1743742234078,-439.24078874,0.00018809,2]
[357099601,1743742238203,-60.75921126,0.00018809,2]
[357099602,1743742238214,-500.0,0.00018809,2]
[357099603,1743742238223,-500.0,0.00018809,2]
[357099604,1743742238233,-500.0,0.00018809,2]
[357099605,1743742238242,-543.83115562,0.00018809,2]
[357099606,1743742238253,-500.0,0.00018809,2]
[357099607,1743742238262,-500.0,0.00018809,2]
[357099608,1743742238271,-500.0,0.00018809,2]
[357099609,1743742238280,-612.56065452,0.00018809,2]
[357099610,1743742238290,-500.0,0.00018809,2]
[357099611,1743742238299,-245.51199883,0.00018809,2]
[357099612,1743742238311,-3965.49952455,0.00018809,2]
[357099613,1743742238322,-1550.44553298,0.00018809,2]
[357099614,1743742238332,-500.0,0.0001881,2]
[357099615,1743742238342,-500.0,0.0001881,2]
[357099616,1743742238351,-500.0,0.0001881,2]
[357099617,1743742238360,-501.29987183,0.0001881,2]
[357099618,1743742238370,-506.13107187,0.0001881,2]
[357099619,1743742238383,-518.86790361,0.0001881,2]